Workbook

Sheet Title
B3: RMFI Software - Version 1.00
B4: For Excel 2000 and more recent versions of Excel
B7: This is the Options Calculator Software that has been designed to
B8: accompany John Hull's book:
B10: "Risk Management and Financial Institutions"
B14: Important: Do not forget to enable Macros. If you are using Office 2007 you will have to
B15: click on the Options button and choose "Enable this content"
B17: © A-J Financial Systems, Inc., 2016

Sheet Equity_FX_Indx_Fut_Opts_Calc
B1: Underlying Type: | J1: Chart: | O1: Progress: | P1: 1
J2: Vertical (Y) Axis: | O2: Strike Price | P2: Option Price
O3: 40 | P3: 11.03122625
O4: 40.10050251 | P4: 10.95387396
C5: Index Level: | D5: 100 | J5: Horizontal (X) Axis: | O5: 40.20100503 | P5: 10.87652167
C6: Volatility (% per year): | D6: 0.3 | O6: 40.30150754 | P6: 10.79916938
C7: Risk-Free Rate (% per year): | D7: 0.02 | O7: 40.40201005 | P7: 10.72181709
C8: Dividend Yield (% per yer): | K8: Minimum X value: | L8: 40 | O8: 40.50251256 | P8: 10.6444648
K9: Maximum X value: | L9: 60 | O9: 40.60301508 | P9: 10.56711252
B10: Option Type: | K10: Number of X Values: | L10: 200 | O10: 40.70351759 | P10: 10.48976023
O11: 40.8040201 | P11: 10.41240794
O12: 40.90452261 | P12: 10.33505565
C13: Life (Years): | D13: 1 | O13: 41.00502513 | P13: 10.25770336
C14: Strike Price: | D14: 100 | O14: 41.10552764 | P14: 10.18035107
C15: Tree Steps: | D15: 500 | O15: 41.20603015 | P15: 10.10299878
O16: 41.30653266 | P16: 10.02564649
O17: 41.40703518 | P17: 9.95312698
O18: 41.50753769 | P18: 9.887880275
B19: Results: | O19: 41.6080402 | P19: 9.82263357
C20: Price: | D20: 12.81566775 | O20: 41.70854271 | P20: 9.757386865
C21: Delta (per $): | D21: 0.5857235369 | O21: 41.80904523 | P21: 9.692140159
C22: Gamma (per $ per $): | D22: 0.01300876218 | O22: 41.90954774 | P22: 9.626893454
C23: Vega (per %): | D23: 0.3893727738 | O23: 42.01005025 | P23: 9.561646749
C24: Theta (per day): | D24: -0.01854705739 | O24: 42.11055276 | P24: 9.496400044
C25: Rho (per %): | D25: 0.4617406074 | O25: 42.21105528 | P25: 9.431153338
O26: 42.31155779 | P26: 9.365906633
O27: 42.4120603 | P27: 9.300659928
O28: 42.51256281 | P28: 9.235413223
O29: 42.61306533 | P29: 9.170166517
O30: 42.71356784 | P30: 9.104919812
O31: 42.81407035 | P31: 9.039673107
O32: 42.91457286 | P32: 8.974426402
O33: 43.01507538 | P33: 8.909179697
O34: 43.11557789 | P34: 8.843932991
O35: 43.2160804 | P35: 8.778686286
O36: 43.31658291 | P36: 8.713439581
O37: 43.41708543 | P37: 8.648192876
O38: 43.51758794 | P38: 8.58294617
O39: 43.61809045 | P39: 8.517699465
O40: 43.71859296 | P40: 8.45245276
O41: 43.81909548 | P41: 8.387206055
O42: 43.91959799 | P42: 8.321959349
O43: 44.0201005 | P43: 8.256712644
O44: 44.12060302 | P44: 8.191465939
O45: 44.22110553 | P45: 8.126219234
O46: 44.32160804 | P46: 8.060972528
O47: 44.42211055 | P47: 7.995725823
O48: 44.52261307 | P48: 7.930479118
O49: 44.62311558 | P49: 7.865232413
O50: 44.72361809 | P50: 7.799985707
O51: 44.8241206 | P51: 7.734739002
O52: 44.92462312 | P52: 7.669492297
O53: 45.02512563 | P53: 7.604245592
O54: 45.12562814 | P54: 7.538998887
O55: 45.22613065 | P55: 7.473752181
O56: 45.32663317 | P56: 7.408505476
O57: 45.42713568 | P57: 7.343258771
O58: 45.52763819 | P58: 7.278012066
O59: 45.6281407 | P59: 7.21276536
O60: 45.72864322 | P60: 7.149131063
O61: 45.82914573 | P61: 7.098438518
O62: 45.92964824 | P62: 7.047745973
O63: 46.03015075 | P63: 6.997053428
O64: 46.13065327 | P64: 6.946360883
O65: 46.23115578 | P65: 6.895668337
O66: 46.33165829 | P66: 6.844975792
O67: 46.4321608 | P67: 6.794283247
O68: 46.53266332 | P68: 6.743590702
O69: 46.63316583 | P69: 6.692898156
O70: 46.73366834 | P70: 6.642205611
O71: 46.83417085 | P71: 6.591513066
O72: 46.93467337 | P72: 6.540820521
O73: 47.03517588 | P73: 6.490127975
O74: 47.13567839 | P74: 6.43943543
O75: 47.2361809 | P75: 6.388742885
O76: 47.33668342 | P76: 6.33805034
O77: 47.43718593 | P77: 6.287357795
O78: 47.53768844 | P78: 6.236665249
O79: 47.63819095 | P79: 6.185972704
O80: 47.73869347 | P80: 6.135280159
O81: 47.83919598 | P81: 6.084587614
O82: 47.93969849 | P82: 6.033895068
O83: 48.04020101 | P83: 5.983202523
O84: 48.14070352 | P84: 5.932509978
O85: 48.24120603 | P85: 5.881817433
O86: 48.34170854 | P86: 5.831124887
O87: 48.44221106 | P87: 5.780432342
O88: 48.54271357 | P88: 5.729739797
O89: 48.64321608 | P89: 5.679047252
O90: 48.74371859 | P90: 5.628354707
O91: 48.84422111 | P91: 5.577662161
O92: 48.94472362 | P92: 5.526969616
O93: 49.04522613 | P93: 5.476277071
O94: 49.14572864 | P94: 5.425584526
O95: 49.24623116 | P95: 5.37489198
O96: 49.34673367 | P96: 5.324199435
O97: 49.44723618 | P97: 5.27350689
O98: 49.54773869 | P98: 5.222814345
O99: 49.64824121 | P99: 5.172121799
O100: 49.74874372 | P100: 5.121429254
O101: 49.84924623 | P101: 5.070736709
O102: 49.94974874 | P102: 5.020044164
O103: 50.05025126 | P103: 4.969351619
O104: 50.15075377 | P104: 4.918659073
O105: 50.25125628 | P105: 4.867966528
O106: 50.35175879 | P106: 4.817273983
O107: 50.45226131 | P107: 4.766581438
O108: 50.55276382 | P108: 4.71993349
O109: 50.65326633 | P109: 4.684239236
O110: 50.75376884 | P110: 4.648544981
O111: 50.85427136 | P111: 4.612850727
O112: 50.95477387 | P112: 4.577156472
O113: 51.05527638 | P113: 4.541462217
O114: 51.15577889 | P114: 4.505767963
O115: 51.25628141 | P115: 4.470073708
O116: 51.35678392 | P116: 4.434379454
O117: 51.45728643 | P117: 4.398685199
O118: 51.55778894 | P118: 4.362990944
O119: 51.65829146 | P119: 4.32729669
O120: 51.75879397 | P120: 4.291602435
O121: 51.85929648 | P121: 4.255908181
O122: 51.95979899 | P122: 4.220213926
O123: 52.06030151 | P123: 4.184519672
O124: 52.16080402 | P124: 4.148825417
O125: 52.26130653 | P125: 4.113131162
O126: 52.36180905 | P126: 4.077436908
O127: 52.46231156 | P127: 4.041742653
O128: 52.56281407 | P128: 4.006048399
O129: 52.66331658 | P129: 3.970354144
O130: 52.7638191 | P130: 3.934659889
O131: 52.86432161 | P131: 3.898965635
O132: 52.96482412 | P132: 3.86327138
O133: 53.06532663 | P133: 3.827577126
O134: 53.16582915 | P134: 3.791882871
O135: 53.26633166 | P135: 3.756188616
O136: 53.36683417 | P136: 3.720494362
O137: 53.46733668 | P137: 3.684800107
O138: 53.5678392 | P138: 3.649105853
O139: 53.66834171 | P139: 3.613411598
O140: 53.76884422 | P140: 3.577717344
O141: 53.86934673 | P141: 3.542023089
O142: 53.96984925 | P142: 3.506328834
O143: 54.07035176 | P143: 3.47063458
O144: 54.17085427 | P144: 3.434940325
O145: 54.27135678 | P145: 3.399246071
O146: 54.3718593 | P146: 3.363551816
O147: 54.47236181 | P147: 3.327857561
O148: 54.57286432 | P148: 3.292163307
O149: 54.67336683 | P149: 3.256469052
O150: 54.77386935 | P150: 3.220774798
O151: 54.87437186 | P151: 3.185080543
O152: 54.97487437 | P152: 3.149386288
O153: 55.07537688 | P153: 3.113692034
O154: 55.1758794 | P154: 3.077997779
O155: 55.27638191 | P155: 3.042303525
O156: 55.37688442 | P156: 3.00660927
O157: 55.47738693 | P157: 2.970915016
O158: 55.57788945 | P158: 2.935220761
O159: 55.67839196 | P159: 2.899526506
O160: 55.77889447 | P160: 2.863832252
O161: 55.87939698 | P161: 2.833398243
O162: 55.9798995 | P162: 2.810951967
O163: 56.08040201 | P163: 2.78850569
O164: 56.18090452 | P164: 2.766059413
O165: 56.28140704 | P165: 2.743613137
O166: 56.38190955 | P166: 2.72116686
O167: 56.48241206 | P167: 2.698720583
O168: 56.58291457 | P168: 2.676274307
O169: 56.68341709 | P169: 2.65382803
O170: 56.7839196 | P170: 2.631381753
O171: 56.88442211 | P171: 2.608935477
O172: 56.98492462 | P172: 2.5864892
O173: 57.08542714 | P173: 2.564042923
O174: 57.18592965 | P174: 2.541596647
O175: 57.28643216 | P175: 2.51915037
O176: 57.38693467 | P176: 2.496704093
O177: 57.48743719 | P177: 2.474257817
O178: 57.5879397 | P178: 2.45181154
O179: 57.68844221 | P179: 2.429365263
O180: 57.78894472 | P180: 2.406918987
O181: 57.88944724 | P181: 2.38447271
O182: 57.98994975 | P182: 2.362026433
O183: 58.09045226 | P183: 2.339580157
O184: 58.19095477 | P184: 2.31713388
O185: 58.29145729 | P185: 2.294687603
O186: 58.3919598 | P186: 2.272241327
O187: 58.49246231 | P187: 2.24979505
O188: 58.59296482 | P188: 2.227348773
O189: 58.69346734 | P189: 2.204902497
O190: 58.79396985 | P190: 2.18245622
O191: 58.89447236 | P191: 2.160009943
O192: 58.99497487 | P192: 2.137563667
O193: 59.09547739 | P193: 2.11511739
O194: 59.1959799 | P194: 2.092671114
O195: 59.29648241 | P195: 2.070224837
O196: 59.39698492 | P196: 2.04777856
O197: 59.49748744 | P197: 2.025332284
O198: 59.59798995 | P198: 2.002886007
O199: 59.69849246 | P199: 1.98043973
O200: 59.79899497 | P200: 1.957993454
... 2 more rows

Sheet Equity Tree Display (hidden)
A1: At each node:
A2: Upper value = Underlying Asset Price | U2: 105.9588452
A3: Lower value = Option Price | U3: 0
A4: Values in red are a result of early exercise. | S4: 97.9046283
S5: 0
A6: Strike price = 50 | Q6: 90.46263412 | U6: 90.46263412
A7: Discount factor per step = 0.9950 | Q7: 0 | U7: 0
A8: Time step, dt = 0.1000 years, 36.50 days | O8: 84.58382905 | S8: 83.58632593
A9: Growth factor per step, a = 1.0050 | O9: 0 | S9: 0
A10: Probability of up move, p = 0.5119 | M10: 78.22523248 | Q10: 77.23270442 | U10: 77.23270442
A11: Up step size, u = 1.0823 | M11: 0 | Q11: 0 | U11: 0
A12: Down step size, d = 0.9240 | K12: 72.34961658 | O12: 72.3595419 | S12: 71.36203878
K13: 0.0523704897 | O13: 0 | S13: 0
I14: 67.91528295 | M14: 66.93014629 | Q14: 65.93761823 | U14: 65.93761823
I15: 0.2777078472 | M15: 0.1078357251 | Q15: 0 | U15: 0
G16: 62.89332355 | K16: 61.91310028 | O16: 61.9230256 | S16: 60.92552248
G17: 0.8002152362 | K17: 0.5168989685 | O17: 0.2220438204 | S17: 0
E18: 58.25239623 | I18: 58.27207432 | M18: 57.28693766 | Q18: 56.29440961 | U18: 56.29440961
E19: 1.693107356 | I19: 1.356451314 | M19: 0.9512425621 | Q19: 0.4572089457 | U19: 0
C20: 53.96354121 | G20: 53.98312116 | K20: 53.00289789 | O20: 53.01282321 | S20: 52.01532009
C21: 2.962876547 | G21: 2.646981455 | K21: 2.250924021 | O21: 1.725812412 | S21: 0.9414358825
A22: 50 | E22: 50.01948229 | I22: 50.03916039 | M22: 49.05402373 | Q22: 48.06149567 | U22: 48.06149567
A23: 4.561934636 | E23: 4.325068431 | I23: 4.027703741 | M23: 3.637177006 | Q23: 3.07407729 | U23: 1.93850433
C24: 46.35643321 | G24: 46.37601316 | K24: 45.39578989 | O24: 45.40571521 | S24: 44.40821209
C25: 6.285914427 | G25: 6.129503018 | K25: 5.932595734 | O25: 5.679214164 | S25: 5.342411874
E26: 42.99061104 | I26: 43.01028913 | M26: 42.02515247 | Q26: 41.03262441 | U26: 41.03262441
E27: 8.40705077 | I27: 8.39686817 | M27: 8.401011331 | Q27: 8.469867273 | U27: 8.967375586
G28: 39.88142531 | K28: 38.90120204 | O28: 38.91112737 | S28: 37.91362424
G29: 10.88213495 | K29: 11.06768903 | O29: 11.34197274 | S29: 11.83699972
I30: 37.00937238 | M30: 36.02423572 | Q30: 35.03170767 | U30: 35.03170767
I31: 13.60049829 | M31: 13.978226 | Q31: 14.47078402 | U31: 14.96829233
K32: 33.35643112 | O32: 33.36635644 | S32: 32.36885332
K33: 16.39664228 | O33: 16.88674366 | S33: 17.38177064
M34: 30.90093775 | Q34: 29.9084097 | U34: 29.9084097
M35: 19.10152397 | Q35: 19.59408199 | U35: 20.0915903
O36: 28.63249414 | S36: 27.63499102
O37: 21.62060596 | S37: 22.11563294
Q38: 25.534381 | U38: 25.534381
Q39: 23.96811068 | U39: 24.465619
S40: 23.59344401
S41: 26.15717995
U42: 21.80004286
U43: 28.19995714
A44: Node Time:
A45: 0 | C45: 0.1 | E45: 0.2 | G45: 0.3 | I45: 0.4 | K45: 0.5 | M45: 0.6 | O45: 0.7 | Q45: 0.8 | S45: 0.9 | U45: 1

Sheet BondOpt Tree Display (hidden)
A1: At each node:
A2: Upper value = Cash Bond Price per $100 of Principal
A3: Middle value = Option Price per $100 of Principal
A4: Lower value = dt-period Rate
A5: Values in red are a result of early exercise.
A7: Strike price = 105
A8: Time step, dt = 0.3750 years, 136.88 days
I10: 71.13164558
I11: 0
I12: 0.1137437486
G14: 79.19393334 | I14: 79.13643359 | J14: Pu: | K14: 0.1401236979
G15: 0 | I15: 0 | J15: Pm: | K15: 0.6635026042
G16: 0.09257153718 | I16: 0.09200252885 | J16: Pd: | K16: 0.1963736979
E18: 87.06919518 | G18: 86.85737348 | I18: 86.65576529 | J18: Pu: | K18: 0.1486197917
E19: 0 | G19: 0 | I19: 0 | J19: Pm: | K19: 0.6652604167
E20: 0.07534847744 | G20: 0.07487721856 | I20: 0.07441697168 | J20: Pd: | K20: 0.1861197917
C22: 94.69002722 | E22: 94.32588325 | G22: 93.96241672 | I22: 93.60052528 | J22: Pu: | K22: 0.1574674479
C23: 0.05822719652 | E23: 0.01706344508 | G23: 0 | I23: 0 | J23: Pm: | K23: 0.6663151042
C24: 0.0613623667 | E24: 0.06094621074 | G24: 0.06056502927 | I24: 0.06019275496 | J24: Pd: | K24: 0.1762174479
A26: 99.51021262 | C26: 101.4978984 | E26: 100.9786862 | G26: 100.4531875 | I26: 99.92196281 | J26: Pu: | K26: 0.1666666667
A27: 0.6719332603 | C27: 0.471654486 | E27: 0.2735992376 | G27: 0.09907031362 | I27: 0 | J27: Pm: | K27: 0.6666666667
A28: 0.05 | C28: 0.04963343467 | E28: 0.04929682363 | G28: 0.048988502 | I28: 0.04868738498 | J28: Pd: | K28: 0.1666666667
C30: 107.6801435 | E30: 107.0004207 | G30: 106.3087402 | I30: 105.6054427 | J30: Pu: | K30: 0.1762174479
C31: 2.163060043 | E31: 1.771631879 | G31: 1.27594345 | I31: 0.6054427412 | J31: Pm: | K31: 0.6663151042
C32: 0.04014639541 | E32: 0.03987412492 | G32: 0.03962473653 | I32: 0.03938117565 | J32: Pd: | K32: 0.1574674479
E34: 112.3921775 | G34: 111.5353229 | I34: 110.6623066 | J34: Pu: | K34: 0.1861197917
E35: 6.142177501 | G35: 5.91032292 | I35: 5.66230658 | J35: Pm: | K35: 0.6652604167
E36: 0.03225250069 | G36: 0.03205078092 | I36: 0.03185377478 | J36: Pd: | K36: 0.1486197917
G38: 116.1587166 | I38: 115.1222444 | J38: Pu: | K38: 0.1963736979
G39: 10.53371657 | I39: 10.12224442 | J39: Pm: | K39: 0.6635026042
G40: 0.02592452714 | I40: 0.02576517717 | J40: Pd: | K40: 0.1401236979
I42: 119.0263203
I43: 14.02632034
I44: 0.02084036693
A45: Node Time:
A46: 0 | C46: 0.375 | E46: 0.75 | G46: 1.125 | I46: 1.5
A47: Accrual:
A48: 0 | C48: 1.875 | E48: 1.25 | G48: 0.625 | I48: 0

Sheet CDSs
B1: CDS Data | E1: Default Rate Data | H1: Term Structure
B2: Life(Yrs) | C2: Spread (bp) | E2: Time (Yrs) | F2: Hazard Rate | H2: Time (Yrs) | I2: Rate (%)
B3: 1 | C3: 123.0025762 | E3: 1 | F3: 0.02 | H3: 2 | I3: 0.05
B4: 2 | C4: 123.0025762
B5: 3 | C5: 123.0025762
B6: 4 | C6: 123.0025762
B7: 5 | C7: 123.0025762
B8: 10 | C8: 123.0025762
D20: Recovery Rate | E20: 0.4
D22: Payment Frequency:

Sheet CDOs
B1: CD0 Data | E1: Default Rate Data | H1: Term Structure
E2: Time (Yrs) | F2: Hazard Rate | H2: Time (Yrs) | I2: Rate (%)
B3: Life (Years) | C3: 5 | E3: 0 | F3: 0.005 | H3: 0 | I3: 0.03
B4: Recovery Rate | C4: 0.4 | E4: 0.5 | F4: 0.01 | H4: 1 | I4: 0.03664
B5: Number of Names | C5: 125 | E5: 1 | F5: 0.0125 | H5: 2 | I5: 0.0418
B6: No. of Integration Points | C6: 8 | E6: 2 | F6: 0.01 | H6: 3 | I6: 0.04583
E7: 5 | F7: 0.01 | H7: 4 | I7: 0.04896
B8: Payment Frequency: | E8: 10 | F8: 0.01 | H8: 5 | I8: 0.0514
H9: 6 | I9: 0.05331
H10: 7 | I10: 0.05479
H11: 8 | I11: 0.05594
H12: 9 | I12: 0.05684
H13: 10 | I13: 0.05754
B19: Attachment Point (%) | C19: Detachment Point (%) | D19: Spread (bp) | E19: Upfront (%) | F19: Tranche Corr | J19: ExpLoss | K19: PVPmts | L19: Base Corr.
B20: 0.1 | C20: 0.15 | D20: 43.56325704 | F20: 0.1882711688 | J20: 0.01921905164 | K20: 4.411757279
B21: 0 | C21: 0.03 | D21: 500 | E21: 0.4069864156 | F21: 0.2 | J21: 0.5512740239 | K21: 2.885752167
B22: 0 | C22: 0.06 | D22: 1247.480937 | F22: 0.08601022637 | J22: 0.4216382579 | K22: 3.379917443
B23: 0 | C23: 0.1 | D23: 630.0068133 | F23: 0.2798840223 | J23: 0.2411851704 | K23: 3.828294635
B24: 0 | C24: 0.2 | D24: 305.3437805 | F24: 0.46374237 | J24: 0.1260095935 | K24: 4.126810549

Sheet Equity Option Functions
A2: Function 16: Black_Scholes(S, K, r, q, vol, T, IsCall, IsFut, Divs, Result)
A3: Carries out Black-Scholes calculations for European options on stocks, stock indices, currencies and futures
A4: Arguments:
A5: S | B5: 50 | C5: Asset Price
A6: K | B6: 50 | C6: Strike price
A7: r | B7: 0.05 | C7: Domestic risk-free rate
A8: q | B8: 0.02 | C8: Dividend yield for stock index options, foreign risk free rate for currency options (Enter 0 if this parameter not applicable)
A9: vol | B9: 0.25 | C9: Volatility. BUT Enter Price if Implied Volatility is to be calculated (i.e. Result=6)
A10: T | B10: 1 | C10: Time to maturity (yrs)
A11: IsCall | B11: TRUE | C11: TRUE if call, FALSE if put
A12: IsFut | B12: FALSE | C12: TRUE if futures option, FALSE otherwise
A13: Divs | C13: Array containing time to dividend payment and size of dividend payment in cols 1 and 2. (Leave blank if not applicable)
A14: Result | B14: 0 | C14: 0=Price; 1=Delta; 2=Gamma; 3=Vega; 4=Theta; 5=Rho; 6=Implied Vol
A17: Example: | B17: =Black_Scholes(B5,B6,B7,B8,B9,B10,B11,B12,,B14) -> 5.561880964 | C17: Continuous Dividends | F17: Dividends
B18: =Black_Scholes(B5,B6,B7,B8,B9,B10,B11,B12,F18:G19,B14) -> 5.010268245 | C18: Discrete Dividends | F18: 0.5 | G18: 1
F19: 0.75 | G19: 1
A21: Function 17: TreeEquityOpt(S, K, r, q, vol, T, IsCall, IsFut, Divs, IsAmerican, nSteps, Result)
A22: Carries out binomial tree calculations for European or American options on stocks, stock indices, currencies, and futures
A23: Arguments:
A24: S | B24: 100 | C24: Asset Price
A25: K | B25: 100 | C25: Strike price
A26: r | B26: 0.02 | C26: Domestic risk-free rate
A27: q | B27: 0 | C27: Dividend yield for stock index options, foreign risk free rate for currency options (Enter 0 if this parameter not applicable)
A28: vol | B28: 0.3 | C28: Volatility. BUT Enter Price if Implied Volatility is to be calculated (i.e. Result=6)
A29: T | B29: 1 | C29: Time to maturity (yrs)
A30: IsCall | B30: TRUE | C30: TRUE if call, FALSE if put
A31: IsFut | B31: FALSE | C31: TRUE if futures option, FALSE otherwise
A32: Divs | C32: Array containing time to dividend payment and size of dividend payment in cols 1 and 2. (Leave blank if not applicable)
A33: IsAmerican | B33: FALSE | C33: TRUE if American option, FALSE if European option
A34: nSteps | B34: 500 | C34: Number of time steps on tree
A35: Result | B35: 0 | C35: 0=Price; 1=Delta; 2=Gamma; 3=Vega; 4=Theta; 5=Rho; 6=Implied Vol
A37: Example: | B37: =TreeEquityOpt(B24,B25,B26,B27,B28,B29,B30,B31,,B33,B34,B35) -> 12.81566775 | C37: Continuous Dividends
B38: =TreeEquityOpt(B24,B25,B26,B27,B28,B29,B30,B31,F18:G19,B33,B34,B35) -> 11.69317363 | C38: Discrete Dividends
A40: Function 18: BinaryOption(S, K, r, q, vol, T, IsCall, IsFut, Divs, IsCash, Result)
A41: Carries out calculations for binary options on stocks, stock indices,currencies and futures
A42: Arguments:
A43: S | B43: 50 | C43: Asset Price
A44: K | B44: 50 | C44: Strike price
A45: r | B45: 0.05 | C45: Domestic risk-free rate
A46: q | B46: 0.02 | C46: Dividend yield for stock index options, foreign risk free rate for currency options (Enter 0 if this parameter not applicable)
A47: vol | B47: 0.25 | C47: Volatility. BUT Enter Price if Implied Volatility is to be calculated (i.e. Result=6)
A48: T | B48: 1 | C48: Time to maturity (yrs)
A49: IsCall | B49: TRUE | C49: TRUE if call, FALSE if put
A50: IsFut | B50: FALSE | C50: TRUE if futures option, FALSE otherwise
A51: Divs | C51: Array containing time to dividend payment and size of dividend payment in cols 1 and 2. (Leave blank if not applicable)
A52: IsCash | B52: TRUE | C52: TRUE if Cash or Nothing, FALSE if Asset or Nothing
A53: Result | B53: 0 | C53: 0=Price; 1=Delta; 2=Gamma; 3=Vega; 4=Theta; 5=Rho; 6=Implied Vol
A55: Example: | B55: =BinaryOption(B43,B44,B45,B46,B47,B48,B49,B50,,B52,B53) -> 0.473717292 | C55: Continuous Dividends | F55: Dividends
B56: =BinaryOption(B43,B44,B45,B46,B47,B48,B49,B50,F56:G57,B52,B53) -> 0.4440905197 | C56: Discrete Dividends | F56: 0.5 | G56: 1
F57: 0.75 | G57: 1
A59: Function 19: BarrierOption(S, K, r, q, vol, T, IsCall, IsFut, H, IsUp, IsIn, Result)
A60: Carries out calculations for barrier options on non-dividend-paying stocks, stock indices, currencies and futures
A61: Arguments:
A62: S | B62: 50 | C62: Asset Price
A63: K | B63: 50 | C63: Strike price
A64: r | B64: 0.05 | C64: Domestic risk-free rate
A65: q | B65: 0.02 | C65: Dividend yield for stock index options, foreign risk free rate for currency options (Enter 0 if this parameter not applicable)
A66: vol | B66: 0.25 | C66: Volatility. BUT Enter Price if Implied Volatility is to be calculated (i.e. Result=6)
A67: T | B67: 1 | C67: Time to maturity (yrs)
A68: IsCall | B68: TRUE | C68: TRUE if call, FALSE if put
A69: IsFut | B69: FALSE | C69: TRUE if futures option, FALSE otherwise
A70: H | B70: 60 | C70: Barrier
A71: IsUp | B71: TRUE | C71: TRUE if Up option; FALSE if Down option
A72: IsIn | B72: FALSE | C72: TRUE if In option; FALSE if Out option
A73: Result | B73: 0 | C73: 0=Price; 1=Delta; 2=Gamma; 3=Vega; 4=Theta; 5=Rho; 6=Implied Vol
A75: Example: | B75: =BarrierOption(B62,B63,B64,B65,B66,B67,B68,B69,B70,B71,B72,B73) -> 0.3363388637
A78: Function 20: AverageOption(S, K, r, q, vol, T, IsCall, IsFut, CurrAve, TimeSoFar, Result)
A79: Carries out calculations for Asian options on non-dividend-paying stocks, stock indices, currencies and futures
A80: Arguments:
A81: S | B81: 50 | C81: Asset Price
A82: K | B82: 50 | C82: Strike price
A83: r | B83: 0.05 | C83: Domestic risk-free rate
A84: q | B84: 0.02 | C84: Dividend yield for stock index options, foreign risk free rate for currency options (Enter 0 if this parameter not applicable)
A85: vol | B85: 0.25 | C85: Volatility. BUT Enter Price if Implied Volatility is to be calculated (i.e. Result=6)
A86: T | B86: 1 | C86: Time to maturity (yrs)
A87: IsCall | B87: TRUE | C87: TRUE if call, FALSE if put
A88: IsFut | B88: FALSE | C88: TRUE if futures option, FALSE otherwise
A89: CurrAve | B89: 50 | C89: Current Average (irrelevant if a new instrument)
A90: TimeSoFar | B90: 0 | C90: Time since beginning of averaging in years (zero for a new instrument)
A91: Result | B91: 3 | C91: 0=Price; 1=Delta; 2=Gamma; 3=Vega; 4=Theta; 5=Rho; 6=Implied Vol
A93: Example: | B93: =AverageOption(B81,B82,B83,B84,B85,B86,B87,B88,B89,B90,B91) -> 0.1108117448
A96: Function 21: ChooserOption(S, K, r, q, vol, T, IsFut, TimeToChoice, Result)
A97: Carries out calculations for chooser options on non-dividend-paying stocks, stock indices,currencies and futures
A98: Arguments:
A99: S | B99: 50 | C99: Asset Price
A100: K | B100: 50 | C100: Strike price
A101: r | B101: 0.05 | C101: Domestic risk-free rate
A102: q | B102: 0.02 | C102: Dividend yield for stock index options, foreign risk free rate for currency options (Enter 0 if this parameter not applicable)
A103: vol | B103: 0.25 | C103: Volatility. BUT Enter Price if Implied Volatility is to be calculated (i.e. Result=6)
A104: T | B104: 1 | C104: Time to maturity (yrs)
A105: IsFut | B105: FALSE | C105: TRUE if futures option, FALSE otherwise
A106: TimeToChoice | B106: 0.35 | C106: Time until choice between call and put has to be made
A107: Result | B107: 0 | C107: 0=Price; 1=Delta; 2=Gamma; 3=Vega; 4=Theta; 5=Rho; 6=Implied Vol
A109: Example: | B109: =ChooserOption(B99,B100,B101,B102,B103,B104,B105,B106,B107) -> 7.742366289
A112: Function 22: CompoundOption(S, K1, r, q, vol, T1, IsCall, IsFut, K2, T2, IsOptionOnCall, Result)
A113: Carries out calculations for compound options on non-dividend-paying stocks, stock indices,currencies and futures
A114: Arguments:
A115: S | B115: 50 | C115: Asset Price
A116: K1 | B116: 5 | C116: First Strike Price
A117: r | B117: 0.05 | C117: Domestic risk-free rate
A118: q | B118: 0.02 | C118: Dividend yield for stock index options, foreign risk free rate for currency options (Enter 0 if this parameter not applicable)
A119: vol | B119: 0.25 | C119: Volatility. BUT Enter Price if Implied Volatility is to be calculated (i.e. Result=6)
A120: T1 | B120: 0.35 | C120: Time to first exercise
A121: IsCall | B121: TRUE | C121: True if first option a call, FALSE if first option a put
A122: IsFut | B122: FALSE | C122: TRUE if futures option, FALSE otherwise
A123: K2 | B123: 50 | C123: Second strike price
A124: T2 | B124: 1 | C124: Time to second exercise
A125: IsOptionOnCall | B125: TRUE | C125: TRUE if second option is a call, FALSE if second option is a put
A126: Result | B126: 0 | C126: 0=Price; 1=Delta; 2=Gamma; 3=Vega; 4=Theta; 5=Rho; 6=Implied Vol
A128: Example: | B128: =CompoundOption(B115,B116,B117,B118,B119,B120,B121,B122,B123,B124,B125,B126) -> 2.042056939
A131: Function 23: LookbackOption(S, r, q, vol, T, IsCall, IsFut, IsFixedLookback, Smax, Smin, K, Result)
A132: Carries out calculations for lookback options on non-dividend-paying stocks, stock indices,currencies and futures
A133: Arguments:
A134: S | B134: 50 | C134: Asset Price
A135: r | B135: 0.05 | C135: Domestic risk-free rate
A136: q | B136: 0.02 | C136: Dividend yield for stock index options, foreign risk free rate for currency options (Enter 0 if this parameter not applicable)
A137: vol | B137: 0.25 | C137: Volatility. BUT Enter Price if Implied Volatility is to be calculated (i.e. Result=6)
A138: T | B138: 1 | C138: Time to maturity (yrs)
A139: IsCall | B139: TRUE | C139: TRUE if lookback call, FALSE if lookback put
A140: IsFut | B140: FALSE | C140: TRUE if futures option, FALSE otherwise
A141: IsFixedLookback | B141: TRUE | C141: TRUE for fixed lookback
A142: Smax | B142: 50 | C142: Maximum price to date (equals to current price if a new instrument)
A143: Smin | B143: 50 | C143: Minimum price to date (equals current price if a new instrument)
A144: K | B144: 55 | C144: Strike price for Fixed Lookback; Ignored otherwise
A145: Result | B145: 1 | C145: 0=Price; 1=Delta; 2=Gamma; 3=Vega; 4=Theta; 5=Rho; 6=Implied Vol
A147: Example: | B147: =LookbackOption(B134,B135,B136,B137,B138,B139,B140,B141,B142,B143,B144,B145) -> 0.8768357673
A149: Function 24: EPortfolio(t, S, IsFut, r, q, Divs, vol, Portfolio, Result)
A150: Carries out calculations for a portfolio of options on a non-dividend-paying stock, stock index, currency, or futures
A151: Arguments:
A152: t | B152: 0.2 | C152: Valuation date (years from today >=0)
A153: S | B153: 50 | C153: Asset price
A154: IsFut | B154: FALSE | C154: TRUE if underlying is a futures price; FALSE otherwise
A155: r | B155: 0.05 | C155: Domestic risk-free rate
A156: q | B156: 0.02 | C156: Dividend yield for stock index options, foreign risk free rate for currency options (Enter 0 if this parameter not applicable)
A157: Divs | C157: Array containing time to dividend payment and size of dividend payment in cols 1 and 2. (Leave blank if not applicable)
A158: vol | B158: 0.25 | C158: Volatility
A159: Portfolio | C159: Array defining portfolio. See below
A160: Result | B160: 0 | C160: 0=Price; 1=Delta; 2=Gamma; 3=Vega; 4=Theta; 5=Rho
A162: Portfolio definition:
B163: Type
A164: Underlying | B164: 0 | C164: Number
A165: Black Scholes | B165: 1 | C165: Number | D165: K | E165: T | F165: IsCall
A166: TreeEquityOption | B166: 2 | C166: Number | D166: K | E166: T | F166: IsCall | G166: nSteps | H166: IsAmerican
A167: Binaryoption | B167: 3 | C167: Number | D167: K | E167: T | F167: IsCall | G167: IsCash
A168: BarrierOption | B168: 4 | C168: Number | D168: K | E168: T | F168: IsCall | G168: Barrier | H168: IsUp | I168: IsIn
A169: AverageOption | B169: 5 | C169: Number | D169: K | E169: T | F169: IsCall | G169: CurrAve | H169: TimeSoFar
A170: ChooserOption | B170: 6 | C170: Number | D170: K | E170: T | F170: TimeToChoice
A171: CompoundOption | B171: 7 | C171: Number | D171: K1 | E171: T1 | F171: IsCall | G171: K2 | H171: T2 | I171: IsOptOnCall
A172: LookBackOption | B172: 8 | C172: Number | D172: K | E172: T | F172: IsCall | G172: IsFixedLookback | H172: Smax | I172: Smin
A174: Sample Portfolio
B175: Type | C175: Number
A176: Underlying | B176: 0 | C176: -2 | K176: Dividends
A177: Black Scholes | B177: 1 | C177: 50 | D177: 55 | E177: 0.5 | F177: TRUE | K177: 0.5 | L177: 1
A178: Black Scholes | B178: 1 | C178: 50 | D178: 48 | E178: 0.75 | F178: TRUE | K178: 0.75 | L178: 1
A179: TreeEquityOption | B179: 2 | C179: 100 | D179: 50 | E179: 0.5 | F179: FALSE | G179: 50 | H179: TRUE
A181: Example: | B181: =EPortfolio(B152,B153,B154,B155,B156,$K$30:$L$31,B158,B176:H179,B160) -> 463.1306792

Sheet Value at Risk
A1: VALUE AT RISK CALCULATION FOR PORTFOLIO OF OPTIONS DEPENDENT ON A SINGLE STOCK
A2: See Sections 14.2 and 14.7 of Risk Management and Financial Institutions 5e
B5: Today | C5: 0
B6: S | C6: 49 | G6: Portfolio | H6: Type | I6: Number
B7: IsFut | C7: FALSE | G7: Underlying | H7: 0 | I7: 1000
B8: r | C8: 0.05 | G8: Black Scholes | H8: 1 | I8: 100 | J8: 55 | K8: 0.5 | L8: TRUE
B9: q | C9: 0 | G9: Black Scholes | H9: 1 | I9: 500 | J9: 50 | K9: 0.25 | L9: TRUE
B10: Volatility | C10: 0.3 | G10: Black Scholes | H10: 1 | I10: 1600 | J10: 50 | K10: 0.2 | L10: FALSE
B11: 1-Day Vol | C11: =C10*SQRT(1/252) -> 0.01889822365
B13: Portfolio
B14: Value | C14: =EPortfolio($C$5,$C$6,$C$7,$C$8,$C$9,,$C$10,$H$7:$L$10,0) -> 55246.4872
B15: Delta | C15: =EPortfolio($C$5,$C$6,$C$7,$C$8,$C$9,,$C$10,$H$7:$L$10,1) -> 486.4198533
B16: Gamma | C16: =EPortfolio($C$5,$C$6,$C$7,$C$8,$C$9,,$C$10,$H$7:$L$10,2) -> 127.8683757
A18: Linear model | B18: 1-Day VaR | C18: =NORMSINV(0.01)*C6*C11*C15 -> -1047.859403
A20: Quadratic Model | B20: E(dP) | C20: =0.5*C6^2*C16*C11^2 -> 54.8235661 | E20: mu_P | F20: =C20 -> 54.8235661 | H20: z_q | I20: =NORMSINV(0.01) -> -2.326347874
B21: E(dp^2) | C21: =C6^2*C15^2*C11^2+0.75*C6^4*C16^2*C11^4 -> 211905.0349 | E21: Sig_P | F21: =SQRT(C21-C20^2) -> 457.0551514 | H21: w_q | I21: =I20+(I20^2-1)*F22/6 -> -1.802219158
B22: E(dP^3) | C22: =4.5*C6^4*C15^2*C16*C11^4+(15/8)*C6^6*C16^3*C11^6 -> 102579159.2 | E22: Xi_P | F22: =(C22-3*C21*F20+2*F20^3)/F21^3 -> 0.7127940951
B24: 1-Day VaR | C24: =F20+I21*F21 -> -768.8899839
A26: Analytic VaR | B26: We calculate the analytic VaR by generating 1000 equally likely portfolio values
B27: 1-Day VaR | C27: =PERCENTILE($C$30:$C$1028,0.01)-$C$14 -> -783.7075089
A29: Prob<S | B29: S | C29: Portfolio Value
A30: 0.001 | B30: =$C$6+NORMSINV($A30)*$C$11*$C$6 -> 46.13840484 | C30: =EPortfolio($C$5+1/252,$B30,$C$7,$C$8,$C$9,,$C$10,$H$7:$L$10,0) -> 54342.52952
A31: 0.002 | B31: 46.33478493 | C31: 54367.73477
A32: 0.003 | B32: 46.45551883 | C32: 54385.62156
A33: 0.004 | B33: 46.54414899 | C33: 54399.91767
A34: 0.005 | B34: 46.61474869 | C34: 54412.01421
A35: 0.006 | B35: 46.6737218 | C35: 54422.60177
A36: 0.007 | B36: 46.72454226 | C36: 54432.07921
A37: 0.008 | B37: 46.76931299 | C37: 54440.70012
A38: 0.009 | B38: 46.80940696 | C38: 54448.63681
A39: 0.01 | B39: 46.84577172 | C39: 54456.0123
A40: 0.011 | B40: 46.87908966 | C40: 54462.9178
A41: 0.012 | B41: 46.90986907 | C41: 54469.42304
A42: 0.013 | B42: 46.93849905 | C42: 54475.58262
A43: 0.014 | B43: 46.96528434 | C43: 54481.44019
A44: 0.015 | B44: 46.99046819 | C44: 54487.03126
A45: 0.016 | B45: 47.01424798 | C45: 54492.38515
A46: 0.017 | B46: 47.03678614 | C46: 54497.52636
A47: 0.018 | B47: 47.05821803 | C47: 54502.47561
A48: 0.019 | B48: 47.07865763 | C48: 54507.2506
A49: 0.02 | B49: 47.09820189 | C49: 54511.86657
A50: 0.021 | B50: 47.11693399 | C50: 54516.33674
A51: 0.022 | B51: 47.13492581 | C51: 54520.67269
A52: 0.023 | B52: 47.15223994 | C52: 54524.8846
A53: 0.024 | B53: 47.16893121 | C53: 54528.98147
A54: 0.025 | B54: 47.18504795 | C54: 54532.97133
A55: 0.026 | B55: 47.20063297 | C55: 54536.86133
A56: 0.027 | B56: 47.21572436 | C56: 54540.65792
A57: 0.028 | B57: 47.23035623 | C57: 54544.3669
A58: 0.029 | B58: 47.24455916 | C58: 54547.99352
A59: 0.03 | B59: 47.25836075 | C59: 54551.54257
A60: 0.031 | B60: 47.27178596 | C60: 54555.01837
A61: 0.032 | B61: 47.28485745 | C61: 54558.42493
A62: 0.033 | B62: 47.29759586 | C62: 54561.76587
A63: 0.034 | B63: 47.31002003 | C63: 54565.04456
A64: 0.035 | B64: 47.32214724 | C64: 54568.26409
A65: 0.036 | B65: 47.33399332 | C65: 54571.4273
A66: 0.037 | B66: 47.34557287 | C66: 54574.53685
A67: 0.038 | B67: 47.35689936 | C67: 54577.59519
A68: 0.039 | B68: 47.36798523 | C68: 54580.6046
A69: 0.04 | B69: 47.37884201 | C69: 54583.56721
A70: 0.041 | B70: 47.38948042 | C70: 54586.48499
A71: 0.042 | B71: 47.39991043 | C71: 54589.35981
A72: 0.043 | B72: 47.4101413 | C72: 54592.19341
A73: 0.044 | B73: 47.42018171 | C73: 54594.9874
A74: 0.045 | B74: 47.43003975 | C74: 54597.74332
A75: 0.046 | B75: 47.43972301 | C75: 54600.46262
A76: 0.047 | B76: 47.44923861 | C76: 54603.14664
A77: 0.048 | B77: 47.45859322 | C77: 54605.79667
A78: 0.049 | B78: 47.46779312 | C78: 54608.41392
A79: 0.05 | B79: 47.47684423 | C79: 54610.99952
A80: 0.051 | B80: 47.48575211 | C80: 54613.55455
A81: 0.052 | B81: 47.49452204 | C81: 54616.08005
A82: 0.053 | B82: 47.50315897 | C82: 54618.57698
A83: 0.054 | B83: 47.51166762 | C83: 54621.04626
A84: 0.055 | B84: 47.52005244 | C84: 54623.48878
A85: 0.056 | B85: 47.52831765 | C85: 54625.90536
A86: 0.057 | B86: 47.53646725 | C86: 54628.2968
A87: 0.058 | B87: 47.54450504 | C87: 54630.66386
A88: 0.059 | B88: 47.55243465 | C88: 54633.00726
A89: 0.06 | B89: 47.5602595 | C89: 54635.32769
A90: 0.061 | B90: 47.56798289 | C90: 54637.62581
A91: 0.062 | B91: 47.57560792 | C91: 54639.90224
A92: 0.063 | B92: 47.58313759 | C92: 54642.15759
A93: 0.064 | B93: 47.59057472 | C93: 54644.39245
A94: 0.065 | B94: =$C$6+NORMSINV($A94)*$C$11*$C$6 -> 47.59792203 | C94: =EPortfolio($C$5+1/252,$B94,$C$7,$C$8,$C$9,,$C$10,$H$7:$L$10,0) -> 54646.60735
A95: 0.066 | B95: 47.60518212 | C95: 54648.80283
A96: 0.067 | B96: 47.61235748 | C96: 54650.9794
A97: 0.068 | B97: 47.61945047 | C97: 54653.13754
A98: 0.069 | B98: 47.62646338 | C98: 54655.27773
A99: 0.07 | B99: 47.63339838 | C99: 54657.40042
A100: 0.071 | B100: 47.64025757 | C100: 54659.50604
A101: 0.072 | B101: 47.64704296 | C101: 54661.59501
A102: 0.073 | B102: 47.65375647 | C102: 54663.66772
A103: 0.074 | B103: 47.66039996 | C103: 54665.72458
A104: 0.075 | B104: 47.6669752 | C104: 54667.76594
A105: 0.076 | B105: 47.67348392 | C105: 54669.79217
A106: 0.077 | B106: 47.67992775 | C106: 54671.80361
A107: 0.078 | B107: 47.68630828 | C107: 54673.80061
A108: 0.079 | B108: 47.69262705 | C108: 54675.78348
A109: 0.08 | B109: 47.69888553 | C109: 54677.75254
A110: 0.081 | B110: 47.70508513 | C110: 54679.70809
A111: 0.082 | B111: 47.71122722 | C111: 54681.65042
A112: 0.083 | B112: 47.71731314 | C112: 54683.57981
A113: 0.084 | B113: 47.72334415 | C113: 54685.49653
A114: 0.085 | B114: 47.72932149 | C114: 54687.40086
A115: 0.086 | B115: 47.73524635 | C115: 54689.29305
A116: 0.087 | B116: 47.74111988 | C116: 54691.17334
A117: 0.088 | B117: 47.7469432 | C117: 54693.04198
A118: 0.089 | B118: 47.75271738 | C118: 54694.8992
A119: 0.09 | B119: 47.75844346 | C119: 54696.74523
A120: 0.091 | B120: 47.76412247 | C120: 54698.58028
A121: 0.092 | B121: 47.76975537 | C121: 54700.40457
A122: 0.093 | B122: 47.77534311 | C122: 54702.21831
A123: 0.094 | B123: 47.78088661 | C123: 54704.0217
A124: 0.095 | B124: 47.78638676 | C124: 54705.81492
A125: 0.096 | B125: 47.79184443 | C125: 54707.59819
A126: 0.097 | B126: 47.79726045 | C126: 54709.37166
A127: 0.098 | B127: 47.80263563 | C127: 54711.13554
A128: 0.099 | B128: 47.80797078 | C128: 54712.88998
A129: 0.1 | B129: 47.81326664 | C129: 54714.63517
A130: 0.101 | B130: 47.81852398 | C130: 54716.37126
A131: 0.102 | B131: 47.8237435 | C131: 54718.09842
A132: 0.103 | B132: 47.82892592 | C132: 54719.81681
A133: 0.104 | B133: 47.83407192 | C133: 54721.52657
A134: 0.105 | B134: 47.83918216 | C134: 54723.22785
A135: 0.106 | B135: 47.84425729 | C135: 54724.92081
A136: 0.107 | B136: 47.84929794 | C136: 54726.60557
A137: 0.108 | B137: 47.85430473 | C137: 54728.28229
A138: 0.109 | B138: 47.85927824 | C138: 54729.95109
A139: 0.11 | B139: 47.86421907 | C139: 54731.6121
A140: 0.111 | B140: 47.86912777 | C140: 54733.26546
A141: 0.112 | B141: 47.87400489 | C141: 54734.91128
A142: 0.113 | B142: 47.87885099 | C142: 54736.54969
A143: 0.114 | B143: 47.88366656 | C143: 54738.18082
A144: 0.115 | B144: 47.88845214 | C144: 54739.80476
A145: 0.116 | B145: 47.89320822 | C145: 54741.42164
A146: 0.117 | B146: 47.89793527 | C146: 54743.03157
A147: 0.118 | B147: 47.90263378 | C147: 54744.63466
A148: 0.119 | B148: 47.90730421 | C148: 54746.23101
A149: 0.12 | B149: 47.911947 | C149: 54747.82073
A150: 0.121 | B150: 47.91656261 | C150: 54749.40391
A151: 0.122 | B151: 47.92115145 | C151: 54750.98066
A152: 0.123 | B152: 47.92571395 | C152: 54752.55107
A153: 0.124 | B153: 47.93025053 | C153: 54754.11524
A154: 0.125 | B154: 47.93476157 | C154: 54755.67327
A155: 0.126 | B155: 47.93924747 | C155: 54757.22523
A156: 0.127 | B156: 47.94370861 | C156: 54758.77122
A157: 0.128 | B157: 47.94814538 | C157: 54760.31133
A158: 0.129 | B158: =$C$6+NORMSINV($A158)*$C$11*$C$6 -> 47.95255813 | C158: =EPortfolio($C$5+1/252,$B158,$C$7,$C$8,$C$9,,$C$10,$H$7:$L$10,0) -> 54761.84565
A159: 0.13 | B159: 47.95694722 | C159: 54763.37425
A160: 0.131 | B160: 47.961313 | C160: 54764.89721
A161: 0.132 | B161: 47.96565582 | C161: 54766.41463
A162: 0.133 | B162: 47.969976 | C162: 54767.92657
A163: 0.134 | B163: 47.97427388 | C163: 54769.43311
A164: 0.135 | B164: 47.97854978 | C164: 54770.93433
A165: 0.136 | B165: 47.98280401 | C165: 54772.43031
A166: 0.137 | B166: 47.98703688 | C166: 54773.9211
A167: 0.138 | B167: 47.99124868 | C167: 54775.4068
A168: 0.139 | B168: 47.99543973 | C168: 54776.88746
A169: 0.14 | B169: 47.99961029 | C169: 54778.36315
A170: 0.141 | B170: 48.00376066 | C170: 54779.83394
A171: 0.142 | B171: 48.00789112 | C171: 54781.2999
A172: 0.143 | B172: 48.01200193 | C172: 54782.76109
A173: 0.144 | B173: 48.01609336 | C173: 54784.21757
A174: 0.145 | B174: 48.02016567 | C174: 54785.66941
A175: 0.146 | B175: 48.02421912 | C175: 54787.11667
A176: 0.147 | B176: 48.02825396 | C176: 54788.55941
A177: 0.148 | B177: 48.03227044 | C177: 54789.99768
A178: 0.149 | B178: 48.03626879 | C178: 54791.43155
A179: 0.15 | B179: 48.04024925 | C179: 54792.86106
A180: 0.151 | B180: 48.04421206 | C180: 54794.28629
A181: 0.152 | B181: 48.04815744 | C181: 54795.70727
A182: 0.153 | B182: 48.05208562 | C182: 54797.12407
A183: 0.154 | B183: 48.05599681 | C183: 54798.53674
A184: 0.155 | B184: 48.05989124 | C184: 54799.94533
A185: 0.156 | B185: 48.06376911 | C185: 54801.3499
A186: 0.157 | B186: 48.06763063 | C186: 54802.75048
A187: 0.158 | B187: 48.071476 | C187: 54804.14714
A188: 0.159 | B188: 48.07530543 | C188: 54805.53991
A189: 0.16 | B189: 48.07911911 | C189: 54806.92886
A190: 0.161 | B190: 48.08291724 | C190: 54808.31402
A191: 0.162 | B191: 48.0867 | C191: 54809.69544
A192: 0.163 | B192: 48.09046758 | C192: 54811.07317
A193: 0.164 | B193: 48.09422016 | C193: 54812.44725
A194: 0.165 | B194: 48.09795793 | C194: 54813.81772
A195: 0.166 | B195: 48.10168105 | C195: 54815.18464
A196: 0.167 | B196: 48.10538972 | C196: 54816.54804
A197: 0.168 | B197: 48.10908409 | C197: 54817.90796
A198: 0.169 | B198: 48.11276433 | C198: 54819.26445
A199: 0.17 | B199: 48.11643061 | C199: 54820.61754
A200: 0.171 | B200: 48.12008309 | C200: 54821.96728
A201: 0.172 | B201: 48.12372194 | C201: 54823.3137
A202: 0.173 | B202: 48.1273473 | C202: 54824.65686
A203: 0.174 | B203: 48.13095934 | C203: 54825.99677
A204: 0.175 | B204: 48.13455821 | C204: 54827.33348
A205: 0.176 | B205: 48.13814404 | C205: 54828.66704
A206: 0.177 | B206: 48.14171701 | C206: 54829.99747
A207: 0.178 | B207: 48.14527724 | C207: 54831.3248
A208: 0.179 | B208: 48.14882488 | C208: 54832.64909
... 820 more rows

Sheet MyData (hidden)
A1: Option Type -> | B1: 3 | C1: Number of items | D1: Items: | H1: Formats: | N1: CDS Hazard Rate Data
A2: Black-Scholes - European | C2: 2 | D2: Life (Years): | E2: Strike Price: | H2: 0.0000 | I2: =IF($B$18=2,"0.0000","0.00") -> 0.00 | N2: 0 | O2: 0.008294485852
A3: Binomial: European | C3: 3 | D3: Life (Years): | E3: Strike Price: | F3: Tree Steps: | H3: 0.0000 | I3: 0.00 | J3: 0 | N3: 1 | O3: 0.008294485852
A4: Binomial: American | C4: 3 | D4: Life (Years): | E4: Strike Price: | F4: Tree Steps: | H4: 0.0000 | I4: 0.00 | J4: 0 | N4: 1.0001 | O4: 0.009985382281
A5: Asian | C5: 4 | D5: Remaining Life (Years): | E5: Strike Price: | F5: Time since Inception: | G5: Current Average: | H5: 0.0000 | I5: 0.00 | J5: 0.0000 | K5: =IF($B$18=2,"0.0000","0.00") -> 0.00 | N5: 2 | O5: 0.009985382281
A6: Barrier: Up and In | C6: 3 | D6: Life (Years): | E6: Strike Price: | F6: Barrier: | H6: 0.0000 | I6: 0.00 | J6: =IF($B$18=2,"0.0000","0.00") -> 0.00 | N6: 2.0001 | O6: 0.01174158313
A7: Barrier: Up and Out | C7: 3 | D7: Life (Years): | E7: Strike Price: | F7: Barrier: | H7: 0.0000 | I7: 0.00 | J7: =IF($B$18=2,"0.0000","0.00") -> 0.00 | N7: 3 | O7: 0.01174158313
A8: Barrier: Down and In | C8: 3 | D8: Life (Years): | E8: Strike Price: | F8: Barrier: | H8: 0.0000 | I8: 0.00 | J8: =IF($B$18=2,"0.0000","0.00") -> 0.00 | N8: 3.0001 | O8: 0.01357925119
A9: Barrier: Down and Out | C9: 3 | D9: Life (Years): | E9: Strike Price: | F9: Barrier: | H9: 0.0000 | I9: 0.00 | J9: =IF($B$18=2,"0.0000","0.00") -> 0.00 | N9: 4 | O9: 0.01357925119
A10: Binary: Cash or Nothing | C10: 3 | D10: Life (Years): | E10: Strike Price: | F10: Cash Amount: | H10: 0.0000 | I10: 0.00 | J10: =IF($B$18=2,"0.0000","0.00") -> 0.00 | N10: 4.0001 | O10: 0.01360513925
A11: Binary: Asset or Nothing | C11: 2 | D11: Life (Years): | E11: Strike Price: | H11: 0.0000 | I11: 0.00 | N11: 5 | O11: 0.01360513925
A12: Chooser | C12: 3 | D12: Life (Years): | E12: Strike Price: | F12: Decision Date: | H12: 0.0000 | I12: 0.00 | J12: 0.0000 | N12: 5.001 | O12: 0.01204875058
A13: Compound: Option on Call | C13: 4 | D13: Time to First Exercise: | E13: First Exercise Price: | F13: Time to Final Exercise: | G13: Final Exercise Price: | H13: 0.0000 | I13: 0.00 | J13: 0.0000 | K13: =IF($B$18=2,"0.0000","0.00") -> 0.00 | N13: 5.5 | O13: 0.01204875058
A14: Compound: Option on Put | C14: 4 | D14: Time to First Exercise: | E14: First Exercise Price: | F14: Time to Final Exercise: | G14: Final Exercise Price: | H14: 0.0000 | I14: 0.00 | J14: 0.0000 | K14: =IF($B$18=2,"0.0000","0.00") -> 0.00 | N14: 5.75 | O14: 0.01204875058
A15: Floating Lookback | C15: 3 | D15: Remaining Life (Years): | E15: Maximum to Date: | F15: Minimum to Date: | H15: 0.0000 | I15: 0.00 | J15: =IF($B$18=2,"0.0000","0.00") -> 0.00 | N15: 6 | O15: 0.01204875058
A16: Fixed Lookback | C16: 4 | D16: Remaining Life (Years): | E16: Maximum to Date: | F16: Minimum to Date: | G16: Exercise Price: | H16: 0.0000 | I16: 0.00 | J16: =IF($B$18=2,"0.0000","0.00") -> 0.00 | K16: =IF($B$18=2,"0.0000","0.00") -> 0.00 | N16: 6.25 | O16: 0.01204875058
N17: 6.5 | O17: 0.01204875058
A18: Underlying Type -> | B18: 3 | N18: 6.75 | O18: 0.01204875058
A19: Equity | C19: 3 | D19: Stock Price: | E19: Volatility (% per year): | F19: Risk-Free Rate (% per year): | H19: 0.00 | I19: 0.00% | J19: 0.00% | N19: 7 | O19: 0.01204875058
A20: Currency | C20: 4 | D20: Exchange Rate ($ / foreign): | E20: Volatility (% per year): | F20: Risk-Free Rate (% per year): | G20: Foreign Risk-free Rate (% per year): | H20: 0.0000 | I20: 0.00% | J20: 0.00% | K20: 0.00% | N20: 7.25 | O20: 0.01204875058
A21: Index | C21: 4 | D21: Index Level: | E21: Volatility (% per year): | F21: Risk-Free Rate (% per year): | G21: Dividend Yield (% per yer): | H21: 0.00 | I21: 0.00% | J21: 0.00% | K21: 0.00% | N21: 7.5 | O21: 0.01204875058
A22: Futures | C22: 3 | D22: Futures Price: | E22: Volatility (% per year): | F22: Risk-Free Rate (% per year): | H22: 0.00 | I22: 0.00% | J22: 0.00% | N22: 7.75 | O22: 0.01204875058
N23: 8 | O23: 0.01204875058
A24: Call or Put -> | B24: 1 | D24: Call or Put for Graph -> | E24: 2 | N24: 8.25 | O24: 0.01204875058
D25: Opt Type for Graph -> | E25: 1 | N25: 8.5 | O25: 0.01204875058
D26: U Type for Graph -> | E26: 2 | N26: 8.75 | O26: 0.01204875058
N27: 9 | O27: 0.01204875058
A28: ImplyVolatility -> | B28: FALSE | N28: 9.25 | O28: 0.01204875058
N29: 9.5 | O29: 0.01204875058
A30: X-axis variable -> | B30: 2 | N30: 9.75 | O30: 0.01204875058
A31: Asset price | N31: 10 | O31: 0.01204875058
A32: Strike price
A33: Risk-free rate
A34: Life (Years)
A35: Volatility
A37: Y-axis variable -> | B37: 1
A38: Option price
A39: Delta
A40: Gamma
A41: Vega
A42: Rho
A43: Theta
A46: Bond Option Display Data:
A47: Coupon Frequency -> | B47: 2 | D47: Coupon Frequency for Graph -> | E47: 2
A48: Quarterly
A49: Semi-Annual
A50: Annual
A52: Pricing Model -> | B52: 6 | C52: Number of items | D52: Items: | I52: Formats:
A53: Black - European | C53: 3 | D53: Strike Price (/100): | E53: Option Life (Years): | F53: Yield Volatility (%): | I53: 0.00 | J53: 0.00 | K53: 0.00%
A54: Normal - Analytic European | C54: 4 | D54: Strike Price (/100): | E54: Option Life (Years): | F54: Short-Rate Volatility (%): | G54: Reversion Rate (%): | I54: 0.00 | J54: 0.00 | K54: 0.00% | L54: 0.00%
A55: Normal - Tree European | C55: 5 | D55: Strike Price (/100): | E55: Option Life (Years): | F55: Short-Rate Volatility (%): | G55: Reversion Rate (%): | H55: Tree Steps: | I55: 0.00 | J55: 0.00 | K55: 0.00% | L55: 0.00% | M55: 0
A56: Normal - Tree American | C56: 5 | D56: Strike Price (/100): | E56: Option Life (Years): | F56: Short-Rate Volatility (%): | G56: Reversion Rate (%): | H56: Tree Steps: | I56: 0.00 | J56: 0.00 | K56: 0.00% | L56: 0.00% | M56: 0
A57: LogNormal - Tree European | C57: 5 | D57: Strike Price (/100): | E57: Option Life (Years): | F57: Short-Rate Volatility (%): | G57: Reversion Rate (%): | H57: Tree Steps: | I57: 0.00 | J57: 0.00 | K57: 0.00% | L57: 0.00% | M57: 0
A58: LogNormal - Tree American | C58: 5 | D58: Strike Price (/100): | E58: Option Life (Years): | F58: Short-Rate Volatility (%): | G58: Reversion Rate (%): | H58: Tree Steps: | I58: 0.00 | J58: 0.00 | K58: 0.00% | L58: 0.00% | M58: 0
A60: Call or Put -> | B60: 2 | D60: Call or Put for Graph -> | E60: 1
D61: Pricing Model for Graph -> | E61: 1
A62: ImplyVolatility -> | B62: FALSE
D63: Quoted Strike for Graphv-> | E63: TRUE
A64: Quoted Strike -> | B64: TRUE
A66: Price from TS -> | B66: TRUE
A68: X-axis variable -> | B68: 2
A69: Parallel Rate Shift
A70: Strike price
A71: Time to Exercise
A72: Volatility
A73: Bond Maturity
A75: Y-axis variable -> | B75: 2
A76: Option price
A77: DV01
A78: Gamma01
A79: Vega
A81: Cap / Swap Option Display Data:
A82: Settlement Frequency -> | B82: 2 | D82: Settlement Freq Graph -> | E82: 3 | F82: Settlement Frequency for Zero -> | G82: 4 | H82: 3
A83: Monthly | D83: Pricing Model Graph -> | E83: 1
A84: Quarterly | D84: Underlying Type Graph -> | E84: 1
A85: Semi-Annual
A86: Annual
A88: Pricing Model -> | B88: 2 | C88: Number of items | D88: Items: | I88: Formats:
A89: Black - European | C89: 1 | D89: Volatility (%): | I89: 0.00%
A90: Bachelier - European | C90: 1 | D90: Standard Deviation (%): | I90: 0.00%
A91: Shifted LogNormal - European | C91: 2 | D91: Volatility (%): | E91: Displacement (%) | I91: 0.00% | J91: 0.00%
A95: Underlying Type -> | B95: 2
A96: Swap Option | C96: 4 | D96: Principal : | E96: Swap Start (Years): | F96: Swap End (Years): | G96: Swap Rate (%): | H96: #,### | I96: 0.00 | J96: 0.00 | K96: 0.00%
A97: Cap / Floor | C97: 4 | D97: Principal : | E97: Cap/Floor Start (Years): | F97: Cap/Floor End (Years): | G97: Cap/Floor Rate (%): | H97: #,### | I97: 0.00 | J97: 0.00 | K97: 0.00%
A99: Call or Put -> | B99: 2 | D99: Call or Put Graph -> | E99: 1
A101: ImplyVolatility -> | B101: FALSE
A103: ImplyBreakEven -> | B103: FALSE
A105: X-axis variable -> | B105: 2
A106: Parallel Rate Shift
A107: Volatility
A108: Swap / Cap Rate
A109: Time to Start
A110: Time to End
A112: Y-axis variable -> | B112: 4
A113: Option price
A114: DV01
A115: Gamma01
A116: Vega
A118: CDS Data
A119: Payment Frequency -> | B119: 3
A120: Quarterly
A121: Semi-Annual
A122: Annual
A124: ImplyLambda -> | B124: 1
A126: CDO Data
A127: Payment Frequency -> | B127: 1
A128: Quarterly
A129: Semi-Annual
A130: Annual
A132: Upfront1 | B132: FALSE
A133: Upfront2 | B133: TRUE
A134: Upfront3 | B134: FALSE
A135: Upfront4 | B135: FALSE
A136: Upfront5 | B136: FALSE
A138: ImpCorr | B138: FALSE
A140: Base Correlation | B140: 2
A142: MC Option Type -> | B142: 2 | C142: Number of items | D142: Items: | H142: Formats:
A143: European | C143: 2 | D143: Life (Years): | E143: Strike Price: | H143: 0.0000 | I143: =IF($B$18=2,"0.0000","0.00") -> 0.00
A144: Asian | C144: 4 | D144: Remaining Life (Years): | E144: Strike Price: | F144: Time since Inception: | G144: Current Average: | H144: 0.0000 | I144: 0.00 | J144: 0.0000 | K144: =IF($B$18=2,"0.0000","0.00") -> 0.00
A145: Barrier: Up and In | C145: 3 | D145: Life (Years): | E145: Strike Price: | F145: Barrier: | H145: 0.0000 | I145: 0.00 | J145: =IF($B$18=2,"0.0000","0.00") -> 0.00
A146: Barrier: Up and Out | C146: 3 | D146: Life (Years): | E146: Strike Price: | F146: Barrier: | H146: 0.0000 | I146: 0.00 | J146: =IF($B$18=2,"0.0000","0.00") -> 0.00
A147: Barrier: Down and In | C147: 3 | D147: Life (Years): | E147: Strike Price: | F147: Barrier: | H147: 0.0000 | I147: 0.00 | J147: =IF($B$18=2,"0.0000","0.00") -> 0.00
A148: Barrier: Down and Out | C148: 3 | D148: Life (Years): | E148: Strike Price: | F148: Barrier: | H148: 0.0000 | I148: 0.00 | J148: =IF($B$18=2,"0.0000","0.00") -> 0.00
A149: Binary: Cash or Nothing | C149: 3 | D149: Life (Years): | E149: Strike Price: | F149: Cash Amount: | H149: 0.0000 | I149: 0.00 | J149: =IF($B$18=2,"0.0000","0.00") -> 0.00
A150: Binary: Asset or Nothing | C150: 2 | D150: Life (Years): | E150: Strike Price: | H150: 0.0000 | I150: 0.00
A151: Floating Lookback | C151: 3 | D151: Remaining Life (Years): | E151: Maximum to Date: | F151: Minimum to Date: | H151: 0.0000 | I151: 0.00 | J151: =IF($B$18=2,"0.0000","0.00") -> 0.00
A152: Fixed Lookback | C152: 4 | D152: Remaining Life (Years): | E152: Maximum to Date: | F152: Minimum to Date: | G152: Exercise Price: | H152: 0.0000 | I152: 0.00 | J152: =IF($B$18=2,"0.0000","0.00") -> 0.00 | K152: =IF($B$18=2,"0.0000","0.00") -> 0.00
A154: MC Underlying Type -> | B154: 4
A155: Equity | C155: 3 | D155: Stock Price: | E155: Risk-Free Rate (% per year): | F155: Dividend Yield (% per yer): | H155: 0.00 | I155: 0.00% | J155: 0.00%
A156: Currency | C156: 3 | D156: Exchange Rate ($ / foreign): | E156: Risk-Free Rate (% per year): | F156: Foreign Risk-free Rate (% per year): | H156: 0.0000 | I156: 0.00% | J156: 0.00%
A157: Index | C157: 3 | D157: Index Level: | E157: Risk-Free Rate (% per year): | F157: Dividend Yield (% per yer): | H157: 0.00 | I157: 0.00% | J157: 0.00%
A158: Futures | C158: 2 | D158: Futures Price: | E158: Risk-Free Rate (% per year): | H158: 0.00 | I158: 0.00%
A160: Call or Put -> | B160: 1
A162: DoAntethetic -> | B162: FALSE
A164: MC Model Type -> | B164: 2
A165: Log Normal | C165: 1 | D165: Volatility (% per year): | H165: 0.00%
A166: Merton Jump Diffusion | C166: 4 | D166: Volatility (% per year): | E166: Jumps per Year: | F166: Average Jump Size (%): | G166: Jump Std. Deviation (%): | H166: 0.00% | I166: 0.000 | J166: 0.00% | K166: 0.00%
A167: Variance Gamma | C167: 3 | D167: Volatility (% per year): | E167: Variance Rate (%): | F167: Theta: | H167: 0.00% | I167: 0.00% | J167: 0.00%
A176: Alt Underlying Type -> | B176: 1
A177: Equity | C177: 3 | D177: Stock Price: | E177: Risk-Free Rate (% per year): | F177: Dividend Yield (% per yer): | H177: 0.00 | I177: 0.00% | J177: 0.00%
A178: Currency | C178: 3 | D178: Exchange Rate ($ / foreign): | E178: Risk-Free Rate (% per year): | F178: Foreign Risk-free Rate (% per year): | H178: 0.0000 | I178: 0.00% | J178: 0.00%
A179: Index | C179: 3 | D179: Index Level: | E179: Risk-Free Rate (% per year): | F179: Dividend Yield (% per yer): | H179: 0.00 | I179: 0.00% | J179: 0.00%
A180: Futures | C180: 2 | D180: Futures Price: | E180: Risk-Free Rate (% per year): | H180: 0.00 | I180: 0.00%
A182: Call or Put -> | B182: 1
A184: MC Model Type -> | B184: 6
A185: Log Normal | C185: 1 | D185: Volatility (% per year): | I185: 0.00%
A186: CEV | C186: 2 | D186: Vol. Parameter | E186: Alpha: | I186: 0.00% | J186: 0.000
A187: Merton Jump Diffusion | C187: 4 | D187: Diffusion Vol. (% per year): | E187: Avg. No. Jumps per Year: | F187: Average Jump Size (%): | G187: Jump Std. Deviation (%): | I187: 0.00% | J187: 0.000 | K187: 0.00% | L187: 0.00%
A188: Variance Gamma | C188: 3 | D188: Volatility (% per year): | E188: Variance Rate (%): | F188: Theta: | I188: 0.00% | J188: 0.00% | K188: 0.00%
A189: Heston | C189: 5 | D189: Initial Volatility (% per year): | E189: Reversion Level (% per year): | F189: Reversion Rate: | G189: Volatility of Variance: | H189: Correlation: | I189: 0.00% | J189: 0.00% | K189: 0.0000 | L189: 0.0000 | M189: 0.0000
A190: SABR | C190: 4 | D190: Initial Volatility (% per year): | E190: Beta: | F190: Volatility of Volatility: | G190: Correlation: | I190: 0.00% | J190: 0.0000 | K190: 0.0000 | L190: 0.0000
A192: Alt-Model Y-axis variable -> | B192: 2
A193: Option price
A194: Implied Volatility
A195: Delta
A196: Gamma
A197: Vega
A198: Rho
A199: Theta
A204: BondPrice Display Data:
A205: Settlement Frequency -> | B205: 2
A207: Swap Price Display Data: | D207: Swap PayFixed | E207: 2
A208: Settlement Frequency -> | B208: 4
